bitfinex-derivatives/quotes_BTCF0:USTF0_20250930
["timestamp","ask_amount","ask_price","bid_price","bid_amount"]
[1759255345036,1.99837029,113280.0,113270.0,0.23351173]
[1759255345226,1.99829029,113280.0,113270.0,0.23351173]
[1759255345533,1.18969029,113280.0,113270.0,0.23351173]
[1759255345727,1.99817029,113280.0,113270.0,0.23351173]
[1759255346026,1.98382064,113280.0,113270.0,0.23351173]
[1759255346232,1.98382064,113280.0,113270.0,0.2495006]
[1759255348922,1.08708094,113280.0,113270.0,0.2495006]
[1759255349124,0.66923419,113280.0,113270.0,0.66734735]
[1759255349328,1.47747419,113280.0,113270.0,0.66734735]
[1759255350032,1.11615419,113280.0,113270.0,1.06734735]
[1759255350228,0.30795419,113280.0,113270.0,1.06734735]
[1759255350430,1.11691419,113280.0,113270.0,1.06734735]
[1759255351632,0.0012,113280.0,113270.0,1.06734735]
[1759255351837,0.80968,113280.0,113270.0,0.98788966]
[1759255352028,0.80928,113280.0,113270.0,1.06734735]
[1759255352228,0.80968,113280.0,113270.0,1.06734735]
[1759255354338,0.80928,113280.0,113270.0,1.06734735]
[1759255354535,0.0012,113280.0,113270.0,1.06734735]
[1759255354733,0.80928,113280.0,113270.0,1.06734735]
[1759255355237,0.0012,113280.0,113270.0,1.06734735]
[1759255355533,0.80916,113280.0,113270.0,1.06734735]
[1759255355938,0.0012,113280.0,113270.0,1.06734735]
[1759255356132,0.80908,113280.0,113270.0,1.42814735]
[1759255356524,0.0008,113280.0,113270.0,1.42814735]
[1759255356730,0.80864,113280.0,113270.0,1.42814735]
[1759255356930,0.80904,113280.0,113270.0,1.42814735]
[1759255357836,0.8973001,113280.0,113270.0,1.06734735]
[1759255358039,0.80952,113280.0,113270.0,0.98788966]
[1759255359432,0.80952,113280.0,113270.0,0.58788966]
[1759255360338,0.80952,113280.0,113270.0,0.17004291]
[1759255360533,2.07642725,113280.0,113270.0,0.08177551]
[1759255360838,2.494274,113280.0,113270.0,0.1093658]
[1759255361038,2.07642725,113280.0,113270.0,0.1097658]
[1759255361938,1.67642725,113280.0,113270.0,0.1097658]
[1759255362334,3.46686725,113280.0,113270.0,0.1097658]
[1759255362936,3.46686725,113280.0,113270.0,0.1235058]
[1759255363243,0.86858725,113280.0,113270.0,0.1235058]
[1759255363443,3.46682725,113280.0,113270.0,0.1235058]
[1759255363644,3.46682725,113280.0,113270.0,0.1097658]
[1759255363846,1.686434,113280.0,113270.0,0.1097658]
[1759255364039,1.26858725,113280.0,113270.0,0.1976346]
[1759255364239,3.86722725,113280.0,113270.0,0.1980346]
[1759255364640,3.86722725,113280.0,113270.0,0.1097658]
[1759255365845,4.285074,113280.0,113270.0,0.1097658]
[1759255366035,4.27072355,113280.0,113270.0,0.04634551]
[1759255366237,4.29978378,113280.0,113270.0,0.04634551]
[1759255366439,0.0882675,113270.0,113260.0,0.15169339]
[1759255366633,3.46555425,113270.0,113260.0,0.18832339]
[1759255366842,3.46555425,113270.0,113260.0,0.18752339]
[1759255367043,0.86691425,113270.0,113260.0,0.18792339]
[1759255367345,3.46551425,113270.0,113260.0,0.16583339]
[1759255368345,3.46551425,113270.0,113260.0,0.15209339]
[1759255368840,3.46551425,113270.0,113260.0,0.16522339]
[1759255369442,3.46551425,113270.0,113260.0,0.15209339]
[1759255372148,3.46551425,113270.0,113260.0,0.16522339]
[1759255372649,0.86691425,113270.0,113260.0,0.07695029]
[1759255372850,3.46519425,113270.0,113260.0,0.16522549]
[1759255373444,0.86691425,113270.0,113260.0,0.16522549]
[1759255373645,3.46507425,113270.0,113260.0,0.16522549]
[1759255377855,0.86691425,113270.0,113260.0,0.16522549]
[1759255378048,3.46503425,113270.0,113260.0,0.16522549]
[1759255378649,0.86691425,113270.0,113260.0,0.18793549]
[1759255379149,1.2565075,113270.0,113260.0,0.18793549]
[1759255379855,1.67435425,113270.0,113260.0,0.18793549]
[1759255380953,1.66000329,113270.0,113260.0,0.1245152]
[1759255383948,0.85256329,113270.0,113260.0,0.1245152]
[1759255384153,1.66000329,113270.0,113260.0,0.1245152]
[1759255384560,0.85256329,113270.0,113260.0,0.1245152]
[1759255384762,1.66000329,113270.0,113260.0,0.1245152]
[1759255384963,0.43471654,113270.0,113260.0,0.1245152]
[1759255385258,1.64940567,113270.0,113260.0,0.20397289]
[1759255386257,0.84212358,113270.0,113260.0,0.20397289]
[1759255386657,1.64956358,113270.0,113260.0,0.20397289]
[1759255386954,1.64956358,113270.0,113260.0,0.20397399]
[1759255389262,1.64956358,113270.0,113260.0,0.16813399]
[1759255390362,1.64956358,113270.0,113260.0,0.18126399]
[1759255390963,1.6352128,113270.0,113260.0,0.18126399]
[1759255391863,1.6352128,113270.0,113260.0,0.07985769]
[1759255392368,3.4259728,113270.0,113260.0,0.07985769]
[1759255392867,0.8277728,113270.0,113260.0,0.07985769]
[1759255393067,3.4259728,113270.0,113260.0,0.16813259]
[1759255394364,3.4259728,113270.0,113260.0,0.18126259]
[1759255395468,3.4259728,113270.0,113260.0,0.16813259]
[1759255395962,3.84397746,113270.0,113260.0,0.07985769]
[1759255396164,4.24397746,113270.0,113260.0,0.06393232]
[1759255396368,4.66198212,113270.0,113260.0,0.0004]
[1759255396563,0.0882758,113260.0,113250.0,0.06314281]
[1759255396763,4.32162761,113260.0,113250.0,0.06314281]
[1759255397164,4.73052165,113260.0,113250.0,0.02814281]
[1759255397370,0.0882836,113250.0,113240.0,0.01385]
[1759255397665,3.95253952,113250.0,113240.0,0.01305]
[1759255397868,3.95253952,113250.0,113240.0,0.01345]
[1759255398262,0.5182902,113250.0,113240.0,0.03632]
[1759255398465,3.46796826,113250.0,113240.0,0.54261606]
[1759255398768,3.46796826,113250.0,113240.0,0.1246114]
[1759255399163,0.77880466,113250.0,113240.0,0.1246114]
[1759255399359,0.77880466,113250.0,113240.0,0.54261606]
[1759255399665,2.67830359,113260.0,113250.0,0.1242033]
[1759255399866,3.90662825,113260.0,113250.0,0.1242033]
[1759255400165,3.90702825,113260.0,113250.0,0.1242033]
[1759255400472,2.15168,113260.0,113250.0,0.55097186]
[1759255400763,3.38016466,113260.0,113250.0,0.95097186]
[1759255400963,1.17168,113260.0,113250.0,0.95097186]
[1759255401165,0.3608,113270.0,113260.0,0.1241955]
[1759255401368,0.3608,113270.0,113260.0,0.62165785]
[1759255401369,1.22924466,113270.0,113260.0,0.62165785]
[1759255401572,0.8874804,113280.0,113270.0,0.1241878]
[1759255401762,3.4897204,113280.0,113270.0,0.1241878]
[1759255402174,3.90772506,113280.0,113270.0,0.1241878]
[1759255402466,3.90688506,113280.0,113270.0,0.1241878]
[1759255402670,3.90728506,113280.0,113270.0,0.1241878]
[1759255402971,3.90728506,113280.0,113270.0,0.03592]
[1759255403169,3.90728506,113280.0,113270.0,0.1241878]
[1759255404267,3.81874016,113280.0,113270.0,0.1241878]
[1759255404467,3.81834016,113280.0,113270.0,0.1241878]
[1759255404673,0.7992155,113280.0,113270.0,0.1241878]
[1759255404869,3.4015355,113280.0,113270.0,0.17053331]
[1759255405069,3.4019355,113280.0,113270.0,0.17053331]
[1759255405266,0.78040466,113280.0,113270.0,0.17053331]
[1759255405465,0.3624,113280.0,113270.0,0.58853797]
[1759255405774,1.59056466,113280.0,113270.0,0.66799566]
[1759255406073,1.59016466,113280.0,113270.0,0.66799566]
[1759255406267,0.0016,113280.0,113270.0,1.42879566]
[1759255406464,0.81176,113280.0,113270.0,1.06799566]
[1759255406775,1.22976466,113280.0,113270.0,1.06799566]
[1759255407270,0.0016,113280.0,113270.0,1.42879566]
[1759255407468,0.0016,113280.0,113270.0,1.34933797]
[1759255407770,1.22968466,113280.0,113270.0,1.42879566]
[1759255407968,1.22968466,113280.0,113270.0,0.98853797]
[1759255408371,0.81168,113280.0,113270.0,0.98853797]
[1759255408567,1.22968466,113280.0,113270.0,0.98853797]
[1759255409175,1.22968466,113280.0,113270.0,1.06799566]
[1759255409671,1.22848466,113280.0,113270.0,1.06799566]
[1759255409877,1.21908874,113280.0,113270.0,1.06799566]
[1759255410276,0.80108408,113280.0,113270.0,1.38245015]
[1759255410574,0.80108408,113280.0,113270.0,0.96444549]
[1759255410776,0.80108408,113280.0,113270.0,1.38245015]
[1759255411166,0.7867356,113280.0,113270.0,1.38245015]
[1759255411874,0.0004,113280.0,113270.0,1.38245015]
[1759255412274,0.80996,113280.0,113270.0,1.38245015]
[1759255412675,0.80956,113280.0,113270.0,1.38245015]
[1759255412969,0.80996,113280.0,113270.0,1.38245015]
[1759255413477,0.80996,113280.0,113270.0,1.02165015]
[1759255417979,0.0004,113280.0,113270.0,1.02165015]
[1759255418185,0.80932,113280.0,113270.0,1.02165015]
[1759255418792,0.41800466,113290.0,113280.0,0.1241808]
[1759255418992,0.41800466,113290.0,113280.0,0.60542202]
[1759255418993,1.22680466,113290.0,113280.0,0.60542202]
[1759255420691,1.22680466,113290.0,113280.0,0.18741736]
[1759255420891,1.22680466,113290.0,113280.0,0.60542202]
[1759255421391,1.67585736,113290.0,113280.0,0.18741736]
[1759255422586,1.67585736,113290.0,113280.0,0.67448336]
[1759255422794,1.58760466,113290.0,113280.0,0.67448336]
[1759255423494,1.67585726,113290.0,113280.0,0.67448336]
[1759255424096,1.67585726,113290.0,113280.0,0.2564787]
[1759255424401,1.67585726,113290.0,113280.0,0.67448336]
[1759255424597,1.67585726,113290.0,113280.0,0.2564787]
[1759255424800,1.58760466,113290.0,113280.0,0.67448336]
[1759255425798,1.67585766,113290.0,113280.0,0.2564787]
[1759255426097,1.67585766,113290.0,113280.0,0.2568787]
[1759255426796,1.67585766,113290.0,113280.0,0.18781696]
[1759255427190,1.67585766,113290.0,113280.0,0.18741696]
[1759255427395,1.67585766,113290.0,113280.0,0.18781696]
[1759255429398,2.07585766,113290.0,113280.0,0.16494696]
[1759255429599,1.26705766,113290.0,113280.0,0.16494696]
[1759255429799,2.07561766,113290.0,113280.0,0.16494696]
[1759255429996,0.7608,113290.0,113280.0,0.18769696]
[1759255430196,1.98756466,113290.0,113280.0,0.18769696]
[1759255430405,2.07581746,113290.0,113280.0,0.16494706]
[1759255430701,2.07581746,113290.0,113280.0,0.18769706]
[1759255431204,2.07577746,113290.0,113280.0,0.1244605]
[1759255432202,2.07577746,113290.0,113280.0,0.1017105]
[1759255432496,3.86625746,113290.0,113280.0,0.1017105]
[1759255433103,3.86621746,113290.0,113280.0,0.1244605]
[1759255433301,1.26705746,113290.0,113280.0,0.20391819]
[1759255433501,3.86617746,113290.0,113280.0,0.20391819]
[1759255434405,2.07573746,113290.0,113280.0,0.20391819]
[1759255434702,1.26705746,113290.0,113280.0,0.20391819]
[1759255434900,2.07557746,113290.0,113280.0,0.20391819]
[1759255435302,2.06122899,113290.0,113280.0,0.20391819]
[1759255435703,1.25270899,113290.0,113280.0,0.20391819]
[1759255435903,2.06122899,113290.0,113280.0,0.20391819]
[1759255436802,2.06122899,113290.0,113280.0,0.18116819]
[1759255437006,2.06122899,113290.0,113280.0,0.09290769]
[1759255437197,2.47923365,113290.0,113280.0,0.09290769]
[1759255438504,2.47923365,113290.0,113280.0,0.18116799]
[1759255438704,2.46863769,113290.0,113280.0,0.18116799]
[1759255439206,2.46863769,113290.0,113280.0,0.09290769]
[1759255439405,1.66011769,113290.0,113280.0,0.09290769]
[1759255439604,4.25887769,113290.0,113280.0,0.09250769]
[1759255439800,4.25887769,113290.0,113280.0,0.01345]
[1759255439999,4.25887769,113290.0,113280.0,0.07695711]
[1759255440201,0.0882582,113280.0,113270.0,0.07655711]
[1759255440401,1.72340684,113280.0,113270.0,0.07655711]
[1759255440608,2.93176684,113280.0,113270.0,0.07655711]
[1759255440806,2.12340684,113280.0,113270.0,0.07695711]
[1759255441107,4.30424218,113280.0,113270.0,0.07655711]
[1759255441303,1.70540218,113280.0,113270.0,0.16522361]
[1759255441607,3.90428218,113280.0,113270.0,0.18797381]
[1759255441803,4.30428218,113280.0,113270.0,0.18797381]
[1759255442109,1.70540218,113280.0,113270.0,0.18797381]
[1759255442310,4.30428218,113280.0,113270.0,0.18797381]
[1759255442510,4.30428218,113280.0,113270.0,0.18797371]
[1759255442711,4.30428218,113280.0,113270.0,0.09970711]
[1759255443612,4.30416218,113280.0,113270.0,0.09970711]
[1759255443911,4.30416218,113280.0,113270.0,0.07695711]
[1759255445702,1.70540218,113280.0,113270.0,0.07695711]
[1759255445911,4.30400218,113280.0,113270.0,0.07695711]
[1759255446111,4.30400218,113280.0,113270.0,0.09970711]
[1759255446414,1.70540218,113280.0,113270.0,0.09970711]
[1759255446614,4.30392218,113280.0,113270.0,0.09970711]
[1759255447010,1.70540218,113280.0,113270.0,0.07695711]
[1759255447211,4.30392218,113280.0,113270.0,0.07695711]
[1759255447610,4.30392218,113280.0,113270.0,0.09970711]
[1759255447813,1.70540218,113280.0,113270.0,0.09970711]
[1759255448019,4.30384218,113280.0,113270.0,0.09970711]
[1759255448210,3.88581978,113280.0,113270.0,0.09970711]
[1759255448715,4.3038067,113280.0,113270.0,0.07695711]
[1759255450716,4.3038067,113280.0,113270.0,0.01345]
[1759255450917,0.0882669,113270.0,113260.0,0.07655711]
[1759255451117,0.86705382,113270.0,113260.0,0.07655711]
[1759255451322,0.86705382,113270.0,113260.0,0.0004]
[1759255451323,1.68504074,113270.0,113260.0,0.0004]
[1759255451626,0.0882815,113250.0,113240.0,0.07612711]
[1759255451826,2.09437534,113250.0,113240.0,0.07692711]
[1759255452016,2.09437534,113250.0,113240.0,0.07612711]
[1759255452316,0.4490815,113250.0,113240.0,0.1240591]
[1759255452516,3.46702842,113250.0,113240.0,0.18756621]
[1759255452720,3.46702842,113250.0,113240.0,0.09927711]
[1759255452919,3.46702842,113250.0,113240.0,0.07652711]
[1759255453315,3.46702842,113250.0,113240.0,0.01302]
[1759255454420,3.46710842,113250.0,113240.0,0.03577]
[1759255454811,0.86706842,113250.0,113240.0,0.03577]
[1759255455015,0.86706842,113250.0,113240.0,0.01302]
[1759255455016,3.46742842,113250.0,113240.0,0.01302]
[1759255455316,4.24621534,113250.0,113240.0,0.01302]
[1759255455514,4.6552459,113250.0,113240.0,0.01262]
[1759255456414,4.6558859,113250.0,113240.0,0.01302]
[1759255456616,4.6558859,113250.0,113240.0,0.01262]
[1759255456916,4.6558859,113250.0,113240.0,0.01302]
[1759255457324,2.0548859,113250.0,113240.0,0.01302]
[1759255457513,4.6559259,113250.0,113240.0,0.01302]
[1759255458118,2.0548859,113250.0,113240.0,0.01302]
[1759255458318,4.6559259,113250.0,113240.0,0.01302]
[1759255459518,4.6559259,113250.0,113240.0,0.01262]
[1759255459915,4.6559259,113250.0,113240.0,0.05896551]
[1759255460721,4.6558059,113250.0,113240.0,0.05896551]
[1759255460921,4.6557659,113250.0,113240.0,0.05896551]
[1759255461218,2.04585534,113250.0,113240.0,0.05896551]
[1759255461526,4.64669534,113250.0,113240.0,0.05896551]
[1759255462031,4.65556156,113250.0,113240.0,0.05896551]
[1759255462932,4.65556156,113250.0,113240.0,0.04634551]
[1759255463127,0.0882918,113240.0,113230.0,0.01262]
[1759255463322,0.86707872,113240.0,113230.0,0.01262]
[1759255463720,3.46771872,113240.0,113230.0,0.01262]
[1759255464026,0.86707872,113240.0,113230.0,0.01262]
[1759255464331,3.46767872,113240.0,113230.0,0.01262]
[1759255465229,3.46759872,113240.0,113230.0,0.01262]
[1759255465432,3.46759872,113240.0,113230.0,0.01302]
[1759255465830,0.86707872,113240.0,113230.0,0.01302]
[1759255466032,3.46751872,113240.0,113230.0,0.01302]
[1759255466429,0.86707872,113240.0,113230.0,0.01302]
[1759255466631,3.46751872,113240.0,113230.0,0.01302]
[1759255467433,3.46739872,113240.0,113230.0,0.01302]
[1759255468937,3.46735872,113240.0,113230.0,0.01302]
[1759255469438,3.46727872,113240.0,113230.0,0.01302]
[1759255469737,0.86707872,113240.0,113230.0,0.01302]
[1759255469931,3.46719872,113240.0,113230.0,0.01302]
[1759255470336,0.86707872,113240.0,113230.0,0.01302]
[1759255470529,3.46719872,113240.0,113230.0,0.01302]
[1759255471334,3.46711872,113240.0,113230.0,0.01302]
[1759255471734,3.0491318,113240.0,113230.0,0.1232364]
[1759255471938,0.86707872,113240.0,113230.0,0.1232364]
[1759255472138,3.0492918,113240.0,113230.0,0.1232364]
[1759255472343,0.86707872,113240.0,113230.0,0.1232364]
[1759255472644,3.46735872,113240.0,113230.0,0.1232364]
[1759255473340,3.46727872,113240.0,113230.0,0.1232364]
[1759255474044,0.86707872,113240.0,113230.0,0.5232364]
[1759255474245,3.46731872,113240.0,113230.0,0.5232364]
[1759255474636,3.46731872,113240.0,113230.0,0.43494]
[1759255475039,3.46731872,113240.0,113230.0,0.5232387]
[1759255475238,3.46731872,113240.0,113230.0,0.43494]
[1759255475444,3.46731872,113240.0,113230.0,0.5232356]
[1759255476639,3.46731872,113240.0,113230.0,0.43494]
[1759255476841,3.46731872,113240.0,113230.0,0.5232375]
[1759255478148,0.86707872,113240.0,113230.0,0.5232375]
[1759255478341,3.46799872,113240.0,113230.0,0.5232375]
[1759255479146,0.4490888,113240.0,113230.0,0.94122442]
[1759255479449,3.0498888,113240.0,113230.0,0.54122442]
[1759255479635,2.9616,113240.0,113230.0,0.94122442]
[1759255480040,2.9616,113240.0,113230.0,0.5232375]
[1759255480243,2.9616,113240.0,113230.0,0.58674461]
[1759255480444,2.9616,113240.0,113230.0,0.18674461]
[1759255481149,0.3608,113240.0,113230.0,0.58674461]
[1759255481344,1.17016,113240.0,113230.0,1.00473153]
[1759255481540,0.3608,113250.0,113240.0,0.03472]
[1759255481741,0.80944,113250.0,113240.0,0.54099582]
[1759255481949,0.79927424,113260.0,113250.0,0.1230013]
[1759255482143,3.40003424,113260.0,113250.0,0.18651129]
[1759255483146,2.98204732,113260.0,113250.0,0.18651129]
[1759255483541,0.3608,113260.0,113250.0,0.58651129]
[1759255483744,1.17016,113260.0,113250.0,1.00449821]
[1759255483949,0.80936,113260.0,113250.0,1.00449821]
[1759255485445,0.3612,113270.0,113260.0,0.1229948]
[1759255485645,0.3612,113270.0,113260.0,0.13200028]
[1759255485646,2.96204,113270.0,113260.0,0.13200028]
[1759255485944,3.38002692,113270.0,113260.0,0.13200028]
[1759255486244,0.3612,113270.0,113260.0,0.13200028]
[1759255486452,2.96188,113270.0,113260.0,0.13200028]
[1759255490045,0.3612,113270.0,113260.0,0.13200028]
[1759255490350,1.17012,113270.0,113260.0,0.9499872]
[1759255490943,1.16972,113270.0,113260.0,0.9499872]
[1759255491139,1.17012,113270.0,113260.0,0.9499872]
[1759255492649,1.17012,113270.0,113260.0,0.53200028]
[1759255493346,1.58810692,113270.0,113260.0,0.53200028]
[1759255493551,1.58810692,113270.0,113260.0,0.13200028]
[1759255495054,1.67637462,113270.0,113260.0,0.1229948]
[1759255496048,1.67637462,113270.0,113260.0,0.1010748]
[1759255496244,1.67637462,113270.0,113260.0,0.1238348]
[1759255497358,1.67637462,113270.0,113260.0,0.1010748]
[1759255497750,1.67637462,113270.0,113260.0,0.1238348]
[1759255498555,1.67637462,113270.0,113260.0,0.1010748]
[1759255498756,1.67637462,113270.0,113260.0,0.1238348]
[1759255499148,1.67637462,113270.0,113260.0,0.1010748]
[1759255499559,1.67637462,113270.0,113260.0,0.1238348]
[1759255499860,1.67637462,113270.0,113260.0,0.1010748]
[1759255500557,0.86745462,113270.0,113260.0,0.1238348]
[1759255500757,3.46729462,113270.0,113260.0,0.1238348]
[1759255501152,0.86745462,113270.0,113260.0,0.1238348]
[1759255501357,3.46721462,113270.0,113260.0,0.1010748]
[1759255501561,0.4494677,113270.0,113260.0,0.1238348]
[1759255501754,3.46721462,113270.0,113260.0,0.1238348]
[1759255501953,0.86745462,113270.0,113260.0,0.1238348]
[1759255502158,3.46717462,113270.0,113260.0,0.1238348]
[1759255503058,3.46729462,113270.0,113260.0,0.1238348]
[1759255503361,0.86745462,113270.0,113260.0,0.1238348]
[1759255503860,3.46721462,113270.0,113260.0,0.1238348]
[1759255504261,0.86745462,113270.0,113260.0,0.1238348]
[1759255504453,1.17004,113270.0,113260.0,0.60533171]
[1759255504653,1.16964,113270.0,113260.0,0.60533171]
[1759255504855,1.17004,113270.0,113260.0,0.60533171]
[1759255505160,1.17008,113270.0,113260.0,0.54182172]
[1759255505561,1.17008,113270.0,113260.0,0.94182172]
[1759255505959,1.17004,113270.0,113260.0,0.94182172]
[1759255506159,1.16964,113270.0,113260.0,0.94182172]
[1759255506358,1.17004,113270.0,113260.0,1.00533171]
[1759255506559,1.16996,113270.0,113260.0,1.00533171]
[1759255506759,1.2582271,113270.0,113260.0,0.94182172]
[1759255506961,1.16996,113270.0,113260.0,0.94182172]
[1759255507156,1.16996,113270.0,113260.0,0.5238348]
[1759255507355,1.16996,113270.0,113260.0,0.58734479]
[1759255507756,1.2582271,113270.0,113260.0,0.58734479]
[1759255507961,1.2582271,113270.0,113260.0,0.5238348]
[1759255508162,1.2582271,113270.0,113260.0,0.58734479]
[1759255509762,1.58794692,113270.0,113260.0,0.58734479]
[1759255510164,1.16996,113270.0,113260.0,0.58734479]
[1759255510355,1.58794346,113270.0,113260.0,1.00532825]
[1759255512555,0.77918346,113270.0,113260.0,1.00532825]
[1759255512762,1.16988,113270.0,113260.0,1.02331171]
[1759255512962,1.58786346,113270.0,113260.0,0.60532825]
[1759255513156,1.58746346,113270.0,113260.0,0.60532825]
[1759255513363,1.58786346,113270.0,113260.0,0.54181826]
[1759255515768,0.80892,113270.0,113260.0,0.95980172]
[1759255515968,2.65860306,113280.0,113270.0,0.1237384]
[1759255516167,3.46628306,113280.0,113270.0,0.54172186]
[1759255516369,0.77878346,113280.0,113270.0,0.54172186]
[1759255516560,2.15156,113280.0,113270.0,0.62117955]
[1759255516861,3.36762659,113280.0,113270.0,0.20319609]
[1759255517066,3.36802659,113280.0,113270.0,0.62117955]
[1759255517267,3.36762659,113280.0,113270.0,0.62117955]
[1759255517568,0.76858659,113280.0,113270.0,0.62117955]
[1759255517772,1.57762659,113280.0,113270.0,0.62117955]
[1759255521374,1.15964313,113280.0,113270.0,0.54172186]
[1759255521573,1.57762659,113280.0,113270.0,0.54172186]
[1759255523674,1.57690659,113280.0,113270.0,0.54172186]
[1759255524570,0.35060313,113280.0,113270.0,0.54172186]
[1759255524777,1.57678659,113280.0,113270.0,0.54172186]
[1759255525375,1.66504569,113280.0,113270.0,0.54172186]
[1759255525575,1.66504569,113280.0,113270.0,0.1237384]
[1759255525878,1.65069659,113280.0,113270.0,0.54172186]
[1759255526177,1.56243749,113280.0,113270.0,0.54172186]
[1759255526574,1.22658346,113280.0,113270.0,0.54172186]
[1759255526774,1.22658346,113280.0,113270.0,0.62117955]
[1759255527078,1.22646346,113280.0,113270.0,0.62117955]
[1759255527279,0.41838346,113280.0,113270.0,0.62117955]
[1759255527578,1.22658346,113280.0,113270.0,0.62117955]
[1759255527777,1.22662346,113280.0,113270.0,0.62117955]
[1759255527972,0.0004,113280.0,113270.0,0.62117955]
[1759255528173,1.22662346,113280.0,113270.0,0.62117955]
[1759255530380,0.41838346,113280.0,113270.0,0.62117955]
[1759255530582,1.22646346,113280.0,113270.0,0.62117955]
[1759255530882,1.22646346,113280.0,113270.0,0.20319609]
[1759255531085,1.22638346,113280.0,113270.0,0.62117955]
[1759255531669,0.41838346,113280.0,113270.0,0.62117955]
[1759255531871,1.22630346,113280.0,113270.0,0.62117955]
[1759255532486,0.41838346,113280.0,113270.0,0.62117955]
[1759255532786,1.22626346,113280.0,113270.0,0.62117955]
[1759255533080,0.41838346,113280.0,113270.0,0.62117955]
[1759255533383,0.0004,113280.0,113270.0,0.62117955]
[1759255533593,0.0004,113280.0,113270.0,1.79996301]
[1759255533786,1.7914,113290.0,113280.0,0.1230094]
[1759255533981,2.60072,113290.0,113280.0,1.39923401]
[1759255534283,2.59992,113290.0,113280.0,1.39923401]
[1759255534478,2.60032,113290.0,113280.0,1.39923401]
[1759255534878,2.60032,113290.0,113280.0,1.31977632]
[1759255536484,0.0004,113290.0,113280.0,1.31977632]
[1759255536684,0.80948,113290.0,113280.0,1.31977632]
[1759255537298,0.0004,113290.0,113280.0,1.31977632]
[1759255537591,0.571,113290.0,113280.0,1.31977632]
[1759255537791,0.80984,113290.0,113280.0,1.31977632]
[1759255538093,0.80984,113290.0,113280.0,1.38921169]
[1759255539802,1.67687466,113290.0,113280.0,0.52216883]
[1759255539998,1.67687466,113290.0,113280.0,0.25585067]
[1759255540393,1.67687466,113290.0,113280.0,0.0981563]
[1759255540601,2.469915,113290.0,113280.0,0.07604505]
[1759255540801,2.05193154,113290.0,113280.0,0.07604505]
[1759255540997,2.05193154,113290.0,113280.0,0.16430425]
[1759255541200,1.63394808,113290.0,113280.0,0.18642425]
[1759255541497,2.05193154,113290.0,113280.0,0.16430425]
[1759255541696,2.05193154,113290.0,113280.0,0.18642425]
[1759255541888,1.65193154,113290.0,113280.0,0.18642425]
[1759255542401,3.37938346,113290.0,113280.0,0.18642425]
[1759255542600,3.46763496,113290.0,113280.0,0.18642425]
[1759255544504,0.86703496,113290.0,113280.0,0.18642425]
[1759255544700,3.37918346,113290.0,113280.0,0.18642425]
[1759255545199,0.77878346,113290.0,113280.0,0.18642425]
[1759255545399,0.3608,113290.0,113280.0,1.02239117]
[1759255545606,1.17064,113290.0,113280.0,1.04035387]
[1759255545898,1.17104,113290.0,113280.0,1.04035387]
[1759255546103,1.17116,113290.0,113280.0,1.04035387]
[1759255546397,0.0004,113290.0,113280.0,1.04597177]
[1759255546600,0.77878346,113300.0,113290.0,0.1230015]
[1759255546796,3.37990346,113300.0,113290.0,0.60444662]
[1759255547201,3.37986346,113300.0,113290.0,0.60444662]
[1759255547602,0.77958346,113300.0,113290.0,0.60444662]
[1759255547801,3.38010346,113300.0,113290.0,0.60444662]
[1759255547998,0.77958346,113300.0,113290.0,0.60444662]
[1759255548204,3.38010346,113300.0,113290.0,0.60444662]
[1759255548400,0.77958346,113300.0,113290.0,0.60444662]
[1759255548602,0.3616,113300.0,113290.0,0.60444662]
[1759255548907,0.81068,113300.0,113290.0,0.54098496]
[1759255549096,0.80988,113300.0,113290.0,0.54098496]
[1759255549301,0.81028,113300.0,113290.0,0.54098496]
[1759255550405,0.81028,113300.0,113290.0,0.5498862]
[1759255551507,0.0004,113300.0,113290.0,0.5498862]
[1759255551711,0.81024,113300.0,113290.0,0.5498862]
[1759255552805,0.81024,113300.0,113290.0,0.13190274]
[1759255553006,0.81024,113300.0,113290.0,0.5498862]
[1759255555610,0.81024,113300.0,113290.0,0.13190274]
[1759255555813,0.81024,113300.0,113290.0,0.61330824]
[1759255557402,0.0004,113300.0,113290.0,0.61330824]
[1759255557601,0.80956,113300.0,113290.0,0.61330824]
[1759255558206,0.0004,113300.0,113290.0,0.61330824]
[1759255558402,0.80972,113300.0,113290.0,0.61330824]
[1759255560321,1.22770346,113300.0,113290.0,0.13190274]
[1759255560611,0.0004,113300.0,113290.0,0.5498862]
[1759255560811,0.0004,113300.0,113290.0,1.32866966]
[1759255561012,0.80948,113300.0,113290.0,0.97411388]
[1759255563510,0.0004,113300.0,113290.0,0.97411388]
[1759255563710,0.80956,113300.0,113290.0,0.9106862]
[1759255566520,0.0004,113300.0,113290.0,0.9106862]
[1759255566822,0.80944,113300.0,113290.0,0.9106862]
[1759255567317,0.0004,113300.0,113290.0,1.32866966]
[1759255567517,0.80884378,113300.0,113290.0,1.40812735]
[1759255567718,0.80924378,113300.0,113290.0,1.40812735]
[1759255568310,0.0004,113300.0,113290.0,1.80812735]
[1759255568515,0.80936,113300.0,113290.0,1.80812735]
[1759255568823,0.80936,113300.0,113290.0,1.72866966]
[1759255569217,0.0004,113300.0,113290.0,1.72866966]
[1759255569423,0.0008,113320.0,113310.0,0.1240462]
[1759255569722,0.27536,113320.0,113310.0,0.54202966]
[1759255569921,0.27576,113320.0,113310.0,0.54202966]
[1759255570418,0.3639884,113320.0,113310.0,0.54202966]
[1759255570621,0.78197186,113320.0,113310.0,0.1240462]
[1759255570824,0.78197186,113320.0,113310.0,0.54202966]
[1759255571928,0.0004,113320.0,113310.0,0.54202966]
[1759255572122,0.8977085,113320.0,113310.0,0.60539942]
[1759255572325,0.8977085,113320.0,113310.0,0.60499384]
[1759255572826,0.80948,113320.0,113310.0,0.18741596]
[1759255573813,0.80948,113320.0,113310.0,0.60499384]
[1759255574121,0.0004,113320.0,113310.0,0.96579384]
[1759255574626,0.8096,113320.0,113310.0,0.96579384]
[1759255575014,0.0004,113320.0,113310.0,0.96579384]
[1759255575218,0.80956,113320.0,113310.0,0.90242408]
[1759255575418,0.80956,113320.0,113310.0,0.96580719]
[1759255575724,0.0004,113320.0,113310.0,0.96580719]
[1759255576025,0.80936,113320.0,113310.0,0.96580719]
[1759255576228,0.0004,113320.0,113310.0,0.90242408]
[1759255576419,0.0004,113320.0,113310.0,0.96581235]
[1759255576725,0.80888,113320.0,113310.0,0.90242408]
[1759255576925,0.80928,113320.0,113310.0,0.90242408]
[1759255577221,0.0004,113320.0,113310.0,1.32000196]
[1759255577418,0.0004,113320.0,113310.0,1.72000196]
[1759255577618,0.8092,113320.0,113310.0,1.79923392]
[1759255577820,0.8096,113320.0,113310.0,1.79923392]
[1759255581327,0.8096,113320.0,113310.0,1.72000196]
[1759255582116,0.0004,113320.0,113310.0,1.79923392]
[1759255582320,0.0008,113340.0,113330.0,0.1252369]
[1759255582517,0.80876,113340.0,113330.0,0.90361478]
[1759255582722,0.3743,113350.0,113340.0,0.1252291]